Cogmind - Beta 17 @@@ ROGUE MODE // 2026.07.02 @ 23:06:27 Player: star Result: Destroyed by B-75 Beast with Magnetic Acceleration Cannon Performance ------------- Evolutions (3) 1500 Regions Visited (6) 1200 Robots Destroyed (59) 295 Value Destroyed (2265) 2265 Prototype IDs (4) 80 Alien Tech Used (0) 0 Bonus (2247) 2247 TOTAL SCORE: 7587 Bonus ------- High Alert Combat Kills 301 Follower Combat Kills 1246 Entered Garrisons 200 Used RIF Installer 500 Cogmind --------- Core Integrity 0/700 Matter 203/300 Energy 95/100 System Corruption 15% Temperature Cool (18) Movement Core (450) Ox8 Location -7/Garrison Parts ------- > --- POWER (1) -------- (None) > --- PROPULSION (4) --- (None) > --- UTILITY (6) ------ Large Storage Unit Machine Analyzer Hacking Suite Hacking Suite Hacking Suite > --- WEAPON (2) ------- Heavy Pick Heavy Pick > --- INVENTORY (15) --- Heavy Ion Engine High-capacity Battery (250) Improved Light Armor Plating Relay Coupler [NC] (28) Relay Coupler [NC] (27) Precision Shock Rifle Precision Shock Rifle Rocket Launcher Rocket Launcher Remote Datajack Peak State ------------ > --- POWER ------------ Cold Fusion Reactor > --- PROPULSION ------- Aluminum Leg Carbon-fiber Leg Carbon-fiber Leg Carbon-fiber Leg > --- UTILITY ---------- Large Storage Unit Machine Analyzer Light Armor Plating Hacking Suite Hacking Suite Hacking Suite > --- WEAPON ----------- HERF Cannon HERF Cannon > --- INVENTORY -------- Heavy Ion Engine Advanced Treads Aluminum Leg Aluminum Leg Aluminum Leg Aluminum Leg High-capacity Battery Precision Shock Rifle Precision Shock Rifle Precision Shock Rifle Precision Shock Rifle Precision Shock Rifle Light EM Pulse Cannon Rocket Launcher Rocket Launcher [Rating: 48] Favorites ----------- Power Cold Fusion Reactor Engine Light Ion Engine Power Core Light Nuclear Core Reactor Cold Fusion Reactor Propulsion Aluminum Leg Treads Advanced Treads Leg Aluminum Leg Wheel Compact Wheel Utility Hacking Suite Device Kinecellerator Storage Large Storage Unit Processor Machine Analyzer Hackware Hacking Suite Protection Light Armor Plating Weapon Light EM Pulse Cannon Energy Gun Precision Shock Rifle Energy Cannon Light EM Pulse Cannon Ballistic Gun Light Assault Rifle Ballistic Cannon Mini Assault Cannon Launcher Rocket Launcher Piercing Weapon Heavy Pick Build | -11 -10 -9 -9 -9 -7 -7 ------- Run | Yrd Mat Mat Sto Rec Fac Gar Slots Evolved 6 | . . 2 . . 4 . Power . | . . . . . . . Propulsion 2 | . . 2 . . . . Utility 4 | . . . . . 4 . Weapon . | . . . . . . . Parts Attached 53 | 6 11 1 5 3 18 9 Power 4 | 1 1 . 2 . . . Engine 2 | 1 . . 1 . . . Core 1 | . 1 . . . . . Reactor 1 | . . . 1 . . . Propulsion 16 | 2 4 1 . 1 4 4 Treads 2 | . . 1 . . . 1 Leg 11 | . 4 . . 1 4 2 Wheel 3 | 2 . . . . . 1 Hover . | . . . . . . . Flight . | . . . . . . . Utility 16 | 1 2 . 2 2 7 2 Device 1 | . . . . . . 1 Storage 2 | 1 1 . . . . . Processor 1 | . . . . . 1 . Hackware 8 | . . . . 2 6 . Protection 4 | . 1 . 2 . . 1 Artifact . | . . . . . . . Weapon 17 | 2 4 . 1 . 7 3 Energy Gun 3 | . . . . . 2 1 Energy Cannon 6 | . 3 . . . 3 . Ballistic Gun 3 | 2 1 . . . . . Ballistic Cannon 1 | . . . . . 1 . Launcher 2 | . . . 1 . 1 . Special Weapon . | . . . . . . . Impact Weapon . | . . . . . . . Slashing Weapon . | . . . . . . . Piercing Weapon 2 | . . . . . . 2 Special Melee Weapon . | . . . . . . . Unidentified Prototypes 4 | . . . 2 . 2 . Corrupted Parts 5 | . . . . . 4 1 System Corruption 12 | . . . . . 10 2 Parts Lost 20 | . 2 . . 1 1 16 Power 1 | . . . . . . 1 Propulsion 13 | . 1 . . 1 . 11 Utility 2 | . . . . . . 2 Weapon 4 | . 1 . . . 1 2 Highest Loss Streak 10 | . 1 . . 1 1 10 To Critical Strikes . | . . . . . . . Average Backups 11 | 1 7 11 15 6 13 14 Power . | . 1 1 1 . 1 1 Propulsion 2 | . 1 2 2 . 4 3 Utility 3 | . . 2 6 2 2 2 Weapon 5 | . 3 6 5 3 5 6 Tool/Special . | . . . . . . . Unused Backups 12 | . 1 . 2 1 2 6 Power 1 | . . . 1 . . . Propulsion . | . . . . . . . Utility 4 | . . . . 1 . 3 Weapon 6 | . 1 . 1 . 2 2 Tool/Special 1 | . . . . . . 1 Average Slot Usage (%) 95 | . 86 99 100 99 95 92 Core 3 | . 10 11 6 . . . Reactor 5 | . . . 2 11 7 6 Leg 32 | . 13 43 44 43 30 25 Wheel 2 | . 14 . . . . . Storage 8 | . 14 11 11 3 7 7 Processor 3 | . . . . . 6 7 Hackware 13 | . . . . 18 22 23 Protection 4 | . 1 11 11 . 3 4 Energy Cannon 15 | . 11 22 21 22 9 10 Ballistic Gun 2 | . 17 . . . . . Ballistic Cannon 1 | . . . . . 3 2 Peak Build Rating 48 | 6 12 16 19 22 48 48 Average Rating 26 | 5 8 14 16 20 40 44 On Entrance 17 | . 6 12 16 19 22 46 Avg Prop Armor Cover (%) 7 | . 4 . . . . 17 Naked Turns . | . . . . . . . Heaviest Build 57 | 11 36 36 43 43 57 57 Greatest Support 55 | 32 32 40 40 40 55 55 Greatest Overweight (x) 8 | 1 3 . 1 1 1 8 Average Overweight (x) . | . . . . . . . Largest Inventory Capacity 15 | 8 15 15 15 15 15 15 Average Capacity 13 | 7 14 15 15 7 15 15 Most Carried 15 | 2 12 15 15 15 15 15 Average Carried 11 | 1 7 11 14 6 13 14 Final Capacity 15 | 8 15 15 15 15 15 15 Final Carried 15 | 2 12 15 15 15 15 10 Class Distribution -------------------- 44% | Commander-Mutant 20% | Scavenger-Mutant 19% | Hacker-Mutant 15% | Mutant Dominant Class ---------------- Mutant | -10/Materials Scavenger-Mutant | -9/Materials Scavenger-Mutant | -9/Storage Commander-Mutant | -9/Recycling Commander-Mutant | -7/Factory Hacker-Mutant | -7/Garrison Resources | -11 -10 -9 -9 -9 -7 -7 ----------- Run | Yrd Mat Mat Sto Rec Fac Gar Matter Collected 1320 | 208 236 40 125 38 429 244 Remotely . | . . . . . . . Salvage Created 2722 | . 569 266 991 60 348 488 Parts 130 | . 19 9 63 5 14 20 Haulers Intercepted 7 | . 1 1 4 . 1 . Recyclers Shooed 1 | . 1 . . . . . Parts Field Recycled . | . . . . . . . Retrieved Matter . | . . . . . . . Parts Self-Destructed . | . . . . . . . Prevented . | . . . . . . . Parts Restored . | . . . . . . . Kills | -11 -10 -9 -9 -9 -7 -7 ------- Run | Yrd Mat Mat Sto Rec Fac Gar Combat Hostiles Destroyed 44 | . 9 2 16 1 7 9 Guns 6 | . 6 . . . . . Cannons 22 | . 3 2 11 1 2 3 AOE 12 | . . . 4 . 4 4 Classes Destroyed 11 | . 4 2 . . 3 2 Worker 1 | . . . . . 1 . Tunneler 1 | . . . . . 1 . Hauler 7 | . 1 1 4 . 1 . Recycler 2 | . 1 1 . . . . Mechanic 2 | . 1 . 1 . . . Operator 2 | . . 1 1 . . . Swarmer 2 | . . . . . . 2 Grunt 25 | . 9 1 8 . 5 2 Sentry 12 | . . 1 8 1 1 1 Hunter 3 | . . . . . . 3 Programmer 2 | . . . . . 1 1 Best Kill Streak 5 | . 2 2 5 1 4 5 Combat Bots Only 5 | . 2 1 3 1 3 5 Max Kills in Single Turn 3 | . 1 1 2 1 3 1 Gunslinging . | . . . . . . . Exploded 3 | . . . 2 . 3 1 Melee . | . . . . . . . Uniques/NPCs Destroyed . | . . . . . . . Combat | -11 -10 -9 -9 -9 -7 -7 -------- Run | Yrd Mat Mat Sto Rec Fac Gar Hostile Shots Fired 382 | . 47 12 45 5 42 231 Missed 148 | . 18 7 18 1 18 86 Hits 234 | . 29 5 27 4 24 145 Projectile 234 | . 29 5 27 4 24 145 AOE 2 | . . . . . 1 1 Critical Strikes 6 | . 1 . . . 1 4 Damage Taken 3773 | . 417 61 402 66 412 2415 Core 945 | . 150 . 90 . 18 687 Absorbed by Shields . | . . . . . . . Regen/Repaired (Parts) 53 | . . . . . . 53 Core Remaining (%) 72 | 100 40 . . 77 . . Volleys Fired 181 | . 48 12 54 5 20 42 Largest 2 | . 2 2 2 2 2 2 Hottest 176 | . 112 112 112 112 128 176 Shots Fired 317 | . 96 24 101 10 32 54 Gun 76 | . 76 . . . . . Cannon 222 | . 20 24 96 10 25 47 Launcher 19 | . . . 5 . 7 7 Special . | . . . . . . . Kinetic 94 | . 76 . . . 8 10 Thermal . | . . . . . . . Explosive 19 | . . . 5 . 7 7 Electromagnetic 204 | . 20 24 96 10 17 37 Robot Hit Streak 18 | . 13 12 18 17 6 6 Robot Miss Streak 3 | . 2 2 2 1 2 3 Penetration Max . | . . . . . . . Secondary Targets 1 | . 1 . . . . . Max Gunslinging Chain 1 | . 1 . . . . . Shots Hit Robots 214 | . 75 17 66 8 19 29 Core Hits 101 | . 23 5 31 3 21 18 Critical Kills . | . . . . . . . Critical Parts Destroyed 1 | . 1 . . . . . Critical Strikes 2 | . 1 . . . 1 . Destroy 1 | . 1 . . . . . Blast 1 | . . . . . 1 . Melee Attacks 5 | . . . . . . 5 Impact . | . . . . . . . Slashing . | . . . . . . . Piercing 5 | . . . . . . 5 Sneak Attacks . | . . . . . . . Combat Hostiles . | . . . . . . . Follow-up Attacks 1 | . . . . . . 1 Damage Inflicted 5985 | . 897 431 1703 164 1192 1598 Guns 510 | . 510 . . . . . Cannons 3436 | . 300 406 1348 150 402 830 Explosions 1856 | . 87 25 355 . 790 599 Melee 169 | . . . . . . 169 Ramming 14 | . . . . 14 . . Kinetic 919 | . 510 . . . 220 189 Thermal 215 | . 87 25 103 . . . Explosive 1641 | . . . 252 . 790 599 Electromagnetic 3027 | . 300 406 1348 150 182 641 Impact . | . . . . . . . Slashing . | . . . . . . . Piercing 169 | . . . . . . 169 Highest Corruption 15 | . . . . . 13 15 Average Corruption 11 | . . . . . 10 13 Corruption Purged . | . . . . . . . Corruption Blocked . | . . . . . . . Effects 76 | . . . . . 37 39 Message Errors 14 | . . . . . 6 8 Matter Fused 17 | . . . . . 8 9 Heat Flow Errors 8 | . . . . . 3 5 Energy Discharges 6 | . . . . . 6 . Parts Fused 2 | . . . . . 1 1 Data Loss (minor) 11 | . . . . . 5 6 Data Loss (major) 7 | . . . . . 5 2 Misfires 4 | . . . . . 2 2 Alerts 3 | . . . . . 1 2 Weapon Failures 4 | . . . . . . 4 Overload Shots . | . . . . . . . Overflow Damage 62 | . 21 11 30 . . . Projectiles 40 | . 21 11 8 . . . Explosions 22 | . . . 22 . . . Melee . | . . . . . . . Knockbacks 1 | . . . . . 1 . Impact . | . . . . . . . Kinetic 1 | . . . . . 1 . Secondary . | . . . . . . . Self-Inflicted Damage 137 | . 63 . 25 . 12 37 Shots 5 | . 2 . 1 . 1 1 Rammed . | . . . . . . . Targets Rammed 2 | . . . . 2 . . Kicked 2 | . . . . 2 . . Crushed . | . . . . . . . Highest Temperature 453 | . 210 183 189 117 174 453 Average Temperature 65 | . 42 71 67 52 36 88 Received Heat Transfer 1626 | . 216 18 120 9 111 1152 Effects 3 | . . . . . . 3 Interference 3 | . . . . . . 3 Siege Activations . | . . . . . . . Martial Activations . | . . . . . . . Shielding Activations . | . . . . . . . Robots Disrupted . | . . . . . . . Combat Hostiles . | . . . . . . . Robots Corrupted 7 | . . 1 2 . 1 3 Combat Hostiles 4 | . . . 1 . 1 2 Parts Fried 17 | . 3 3 9 . 1 1 Impact Corruptions . | . . . . . . . Robots Melted . | . . . . . . . Combat Hostiles . | . . . . . . . Parts Melted 1 | . . . . . . 1 Heat Transferred 300 | . 100 50 150 . . . Parts Sabotaged . | . . . . . . . Parts Stolen . | . . . . . . . Parts Stripped . | . . . . . . . Power Chain Reactions 5 | . 2 1 2 . . . Alert | -11 -10 -9 -9 -9 -7 -7 ------- Run | Yrd Mat Mat Sto Rec Fac Gar Maximum Alert Level 4 | . . . 1 . 3 4 Low Security (%) 56 | 100 100 100 48 100 32 . Level 1 9 | . . . 51 . 2 . Level 2 12 | . . . . . 50 . Level 3 20 | . . . . . 14 93 Level 4 1 | . . . . . . 6 Level 5 . | . . . . . . . High Security . | . . . . . . . Max Security . | . . . . . . . Peak Influence 1128 | . 100 35 380 136 1025 1128 Initial 714 | . . . . 136 7 714 Average 318 | . 35 6 190 29 420 933 Influence Increases 3323 | . 280 88 691 122 1533 609 Destroy 0b10 Robot/C 1620 | . 180 40 360 80 640 320 Destroy 0b10 Robot/NC 100 | . 15 15 35 . 30 5 Destroy Leader 338 | . 32 12 130 . 134 30 Allied During Kill 697 | . . . 53 23 553 68 Successful Hack 75 | . . . 13 19 35 8 Disable Machine 120 | . . . 30 . 90 . Anti-Garrison Action 100 | . . . . . . 100 Destroy Structure 168 | . 8 6 40 . 51 63 Lose Combat Pursuer 105 | . 45 15 30 . . 15 Influence Decreases 2310 | . 280 88 341 453 531 617 Entered New Map 533 | . . . . 214 12 307 Time Decay 1283 | . 260 88 301 219 415 . Lost Part 184 | . 20 . . . 4 160 Lost Ally 310 | . . . 40 20 100 150 Squads Dispatched 14 | . 1 1 3 . 9 . Investigation 6 | . 1 . . . 5 . Extermination 2 | . . . . . 2 . Reinforcement 6 | . . 1 3 . 2 . Assault . | . . . . . . . Garrison . | . . . . . . . Intercept . | . . . . . . . Searches Triggered . | . . . . . . . Construction Impeded . | . . . . . . . Haulers Reinforced 2 | . . . . . 2 . Active Scanning Responses . | . . . . . . . Cargo Convoy Interrupts . | . . . . . . . Stealth | -11 -10 -9 -9 -9 -7 -7 --------- Run | Yrd Mat Mat Sto Rec Fac Gar Distress Signals 6 | . 1 . 3 . 2 . Communications Jammed . | . . . . . . . Distress Signals . | . . . . . . . Times Spotted 99 | . 15 8 23 3 23 27 Peak Tracking Total 7 | . 2 2 5 2 4 7 Tactical Retreats 6 | . 2 1 2 . . 1 Traps | -11 -10 -9 -9 -9 -7 -7 ------- Run | Yrd Mat Mat Sto Rec Fac Gar Traps Triggered 4 | . 1 . 1 . 1 1 Indirectly . | . . . . . . . Trap Hack Attempts . | . . . . . . . Triggered . | . . . . . . . Disarmed . | . . . . . . . Reprogrammed . | . . . . . . . Reused . | . . . . . . . Traps Extracted . | . . . . . . . Installed . | . . . . . . . Triggered . | . . . . . . . Machines | -11 -10 -9 -9 -9 -7 -7 ---------- Run | Yrd Mat Mat Sto Rec Fac Gar Machines Disabled 9 | . . . 2 . 6 1 Max in Single Turn 1 | . . . 1 . . 1 Garrison Relay 1 | . . . . . . 1 Machines Repaired . | . . . . . . . Machines Dismantled . | . . . . . . . Machines Sabotaged . | . . . . . . . Overloaded Fab Kills . | . . . . . . . Hacking | -11 -10 -9 -9 -9 -7 -7 --------- Run | Yrd Mat Mat Sto Rec Fac Gar Machines Accessed 21 | . 1 1 2 6 10 1 Terminals 14 | . 1 1 2 5 4 1 Fabricators 3 | . . . . . 3 . Repair Stations . | . . . . . . . Recycling Units 1 | . . . . 1 . . Scanalyzers 1 | . . . . . 1 . Garrison Access 2 | . . . . . 2 . Total Hacks 50 | . 2 1 3 11 30 3 Successful 31 | . . . 2 9 19 1 Failed 19 | . 2 1 1 2 11 2 Catastrophic 1 | . . . . . 1 . Database Lockouts . | . . . . . . . Manual 22 | . 2 1 3 8 8 . Terminals 28 | . 2 1 3 10 9 3 Fabricators 15 | . . . . . 15 . Repair Stations . | . . . . . . . Recycling Units 1 | . . . . 1 . . Scanalyzers 2 | . . . . . 2 . Garrison Access 4 | . . . . . 4 . Terminal Hacks 15 | . . . 2 7 5 1 Record 3 | . . . . 3 . . Part Schematic 3 | . . . . 2 1 . Robot Schematic 3 | . . . . 2 1 . Open Door 1 | . . . 1 . . . Emergency Access Points 1 | . . . . . . 1 Garrison Index 1 | . . . . . 1 . Transport Status 1 | . . . . . 1 . Hauler Manifests 2 | . . . 1 . 1 . Fabricator Hacks 11 | . . . . . 11 . Load Schematic 5 | . . . . . 5 . Build 6 | . . . . . 6 . Repair Station Hacks . | . . . . . . . Recycling Unit Hacks . | . . . . . . . Scanalyzer . | . . . . . . . Garrison Access Hacks 1 | . . . . . 1 . Unlock Access 1 | . . . . . 1 . Unauthorized Hacks 4 | . . . . 2 2 . Terminals 1 | . . . . 1 . . Track 1 | . . . . 1 . . Fabricators 2 | . . . . . 2 . Prioritize 2 | . . . . . 2 . Repair Stations . | . . . . . . . Recycling Units 1 | . . . . 1 . . Mask 1 | . . . . 1 . . Scanalyzers . | . . . . . . . Garrison Access . | . . . . . . . Data Cores Recovered 1 | . . 1 . . . . Used . | . . . . . . . Hacking Detections 13 | . 1 1 . 2 8 1 Full Trace Events 4 | . . . . . 3 1 Feedback Events . | . . . . . . . Feedback Blocked . | . . . . . . . Robot Schematics Acquired 3 | . . . . 2 1 . Robots Built 9 | . . . . . 9 . Authchips 4 | . . . . . 4 . Time 206 | . . . . . 206 . Total Robot Build Rating 33 | . . . . . 33 . Part Schematics Acquired 3 | . . . . 2 1 . Parts Built 2 | . . . . . 2 . Authchips . | . . . . . . . Time 117 | . . . . . 117 . Total Part Build Rating 14 | . . . . . 14 . Part Studies Acquired . | . . . . . . . Parts Repaired . | . . . . . . . Time . | . . . . . . . Parts Recycled . | . . . . . . . Recycled Matter . | . . . . . . . Retrieved Matter . | . . . . . . . Retrieved Components . | . . . . . . . Parts Scanalyzed . | . . . . . . . Part Schematics Acquired . | . . . . . . . Parts Damaged . | . . . . . . . Bothacking | -11 -10 -9 -9 -9 -7 -7 ------------ Run | Yrd Mat Mat Sto Rec Fac Gar Used RIF Installer 1 | . . . . . . 1 Robots Hacked . | . . . . . . . Non-combat . | . . . . . . . Combat . | . . . . . . . Robot Hacks Applied . | . . . . . . . Relay Couplers Released 4 | . . . . . . 4 Machine Destruction 4 | . . . . . . 4 Fabnet Peak Effective % . | . . . . . . . Robots Rewired . | . . . . . . . Allies Hacked 1 | . . . . . 1 . Hacks Repelled 1 | . . . . . 1 . Allies | -11 -10 -9 -9 -9 -7 -7 -------- Run | Yrd Mat Mat Sto Rec Fac Gar Total Allies 20 | . . . 10 . 10 . Largest Group 14 | . . . 10 8 14 8 Highest-Rated Group 358 | . . . 88 72 358 180 Highest-Rated Ally 37 | . . . 16 16 37 37 Total Orders 1 | . . . . . . 1 AID 1 | . . . . . . 1 Ally Attacks 208 | . . . 13 14 134 47 Total Damage 3819 | . . . 126 155 2695 843 Kills 42 | . . . 3 3 29 7 Allies Corrupted . | . . . . . . . Allies Melted . | . . . . . . . Intel | -11 -10 -9 -9 -9 -7 -7 ------- Run | Yrd Mat Mat Sto Rec Fac Gar Active Infowar (turns) 2088 | . . . . . 1203 885 Machine Analysis 2088 | . . . . . 1203 885 Robot Analysis Total . | . . . . . . . Derelict Logs Recovered . | . . . . . . . Drone Launches . | . . . . . . . Drone Recoveries . | . . . . . . . Exploration | -11 -10 -9 -9 -9 -7 -7 ------------- Run | Yrd Mat Mat Sto Rec Fac Gar Turns Passed 4909 | 54 694 350 816 867 1235 893 Spaces Moved 2501 | 45 294 172 294 656 703 337 Core 12 | 6 . . . . . 6 Treads 13 | . . . . . . 13 Legs 2317 | . 174 172 294 656 703 318 Wheels 159 | 39 120 . . . . . Hover . | . . . . . . . Flight . | . . . . . . . Fastest Speed 50 | 50 100 120 120 120 120 120 Average Speed 137 | 94 170 120 137 122 123 182 Slowest Speed 450 | 100 330 120 190 190 190 450 Overloaded Moves . | . . . . . . . Propulsion Burnouts . | . . . . . . . Robots Hopped . | . . . . . . . Potential Cave-ins . | . . . . . . . Cave-ins Triggered . | . . . . . . . Exploration Rate (%) 40 | 3 41 20 61 89 23 45 Regions Visited 6 Branch Regions 2 Pre-discovered Areas . | . . . . . . . Known Exits Taken 1 | . . . . . 1 . Unknown Exits Taken 5 | 1 1 1 1 1 . . Scrap Searched . | . . . . . . . Spaces Dug 13 | . . . . . 6 7 Terrain Destroyed 104 | . 6 5 45 . 29 19 Melee . | . . . . . . . Projectile . | . . . . . . . AOE 104 | . 6 5 45 . 29 19 Terrain Rammed . | . . . . . . . Walls Destroyed . | . . . . . . . Machines Disabled . | . . . . . . . Actions | -11 -10 -9 -9 -9 -7 -7 --------- Run | Yrd Mat Mat Sto Rec Fac Gar Total 3645 | 53 402 292 605 713 1035 545 Wait 801 | 1 36 99 237 25 270 133 Move 2495 | 44 293 171 293 655 702 337 Hop . | . . . . . . . Pick Up 48 | 2 9 6 3 16 8 4 Fast Attach 15 | 6 3 . . 1 . 5 Attach 19 | . 2 2 . 1 9 5 Detach 2 | . 2 . . . . . Swap 46 | . 7 1 8 2 17 11 Drop 21 | . 2 1 5 6 3 4 Fire 181 | . 48 12 54 5 20 42 Melee 4 | . . . . . . 4 Ram . | . . . . . . . Kick 2 | . . . . 2 . . Crush . | . . . . . . . Escape Stasis 10 | . . . 5 . 5 . Rewire 1 | . . . . . 1 . Trap . | . . . . . . . Miscellaneous . | . . . . . . . Route ------- -11/Scrapyard -10/Materials -9/Materials -9/Storage -9/Recycling -7/Factory -7/Garrison History --------- Turn | Location | Event 25 | -11/Scrapyard | Discovered new exit (range 16) 55 | -11/Scrapyard | Entered Materials 272 | -10/Materials | Core integrity fell below 50% 310 | -10/Materials | Build established: Mutant 655 | -10/Materials | Derelicts attacked the area 713 | -10/Materials | Discovered new exit (range 16) 749 | -10/Materials | Entered another Materials area 749 | -9/Materials | Evolved 2 slots: Propulsion x2 825 | -9/Materials | Discovered new exit (range 7) 1038 | -9/Materials | Build established: Scavenger-Mutant 1099 | -9/Materials | Entered Storage 1765 | -9/Storage | Assisted by bots powering up and referring to "LRC-V3" 1889 | -9/Storage | Used back door to open Recycling access 1889 | -9/Storage | Discovered new exit (range 3) 1915 | -9/Storage | Entered Recycling 1915 | -9/Recycling | Accompanied by 8 allies 2076 | -9/Recycling | Build established: Commander-Mutant 2343 | -9/Recycling | Scanned before Scraplab entrance 2422 | -9/Recycling | Discovered new exit (range 16) 2782 | -9/Recycling | Entered Factory 2782 | -7/Factory | Accompanied by 5 allies 2782 | -7/Factory | Evolved 4 slots: Utility x4 3036 | -7/Factory | Fabricated P-60 Hacker (x2) 3070 | -7/Factory | Fabricated P-60 Hacker (x2) 3104 | -7/Factory | Fabricated P-60 Hacker (x2) 3105 | -7/Factory | System corruption reached 10% 3138 | -7/Factory | Fabricated P-60 Hacker? 3179 | -7/Factory | Fabricated M-13 Machinist (x1) 3346 | -7/Factory | Fabricated HERF Cannon (x2) 3636 | -7/Factory | Hacker 4c assimilated hostile G-50 Soldier 3640 | -7/Factory | P-60 Hacker assimilated allied Mercenary 2b 3983 | -7/Factory | Identified exit to Garrison 4017 | -7/Factory | Entered Garrison 4017 | -7/Garrison | Accompanied by 8 allies 4022 | -7/Garrison | Lost 3 allies 4040 | -7/Garrison | Installed Relay Interface Framework 4208 | -7/Garrison | Triggered checkpoint 4225 | -7/Garrison | Triggered checkpoint 4226 | -7/Garrison | Triggered checkpoint 4272 | -7/Garrison | Lost 3 parts (2n1u) 4290 | -7/Garrison | Lost 8 allies 4506 | -7/Garrison | Build established: Hacker-Mutant 4521 | -7/Garrison | Triggered checkpoint 4581 | -7/Garrison | Garrison Relay disabled 4685 | -7/Garrison | Triggered checkpoint 4775 | -7/Garrison | Spotted B-75 Beast 4873 | -7/Garrison | Core integrity fell below 50% 4904 | -7/Garrison | Core integrity fell below 20% 4910 | -7/Garrison | Destroyed by B-75 Beast with Magnetic Acceleration Cannon Last Messages --------------- 04831_ Acquired Corrupted Unknown Wheel. 04831_ Identified Arm. Huge Wheel. 04831_ Integrated Corrupted Arm. Huge Wheel (+2). 04831_ Corrupted Arm. Huge Wheel temporarily disabled. 04833_ Kinecellerator destroyed. 04835_ Critical hit (Meltdown: +310). 04839_ Cold Fusion Reactor destroyed. 04847_ System corrupted: Matter fused (-5). 04859_ Adv. Treads destroyed. 04859_ Knocked back. 04867_ Aluminum Leg destroyed. 04869_ System corrupted: Matter fused (-6). 04869_ B-75 Beast IFF system glitched. 04869_ G-47 Trooper destroyed. 04872_ Aluminum Leg destroyed. 04890_ XK2QVXMSKAIZ/FGC4K>5X9WF9RB1LGSKB /ES 04893_ Acquired Hvy. Pick. 04896_ Arm. Huge Wheel destroyed. 04899_ Acquired Hvy. Pick. 04903_ Hvy. Pick follow-up attack on Y-54 Guardian. Map ----- +----------------------------------------------------+ | ????????????????????????????????????# ?????????? | | ?????????????????????#####??????????# ?????????? | | ?????????????????????#"""#??????????# ?????????? | | ?????????????????????# "#??????????# ?????????? | | ?????????????????????# "#??????????# #?????????? | | ?????????????+???????+ ["#??????????# "?????????? | | ?????????????????????#[ "#??????????# #?????????? | | ?????????????????????# ########+#?# #?????????? | | ?????????????????????# !! #?# #?????????? | | ?????????????????????####### ## #?# #?????????? | | ???????????????????????????# = ## #?# #?????????? | | ???????????????????????????##%### #?# ##????????? | | ????????????????????????????#=#?# #?# %#????????? | | ????????????????????????????# #?# #?#% "##???????? | | ???????+???????## ###########"### ###+"#T###?????? | | ?????????????? [%= % #?????? | | ?????????????? [ % #?????? | | ?????????????? !* % #?????? | | ????????????????#+###########"##" "##%=# #?????? | | ????????????????????????????# #?" "##### #?????? | | ????????????????????????????# #?# "#???# #?????? | | ????????????????????????????# ##" "##### #?????? | | ??????????????????????#?????#[%*" #?????? | | ??????????????????????# ????# """####### #?????? | | ????????????????????###+###?# "##??????# #?????? | | ????????????????????#!!Y/@#?# "#???????# #?????# | | ????????????????????#!! YBB#"%#????????# ####### | | ????????????????????# %gBB;; #?????#### # # | | ????????????????????+ / #?????# " ## # | | ????????????????????# #;; #######"#![ %=%% | | ????????????????????#!! [[### !%%![ = | | ????????????????????#!! [[#?####### ##=# | | ????????????????????###+###???????# ###! ## # | | ??????????????????????# ??????????# #### ## # | | ??????????????????????##??????????# + | | ??????????????????????????????????#### % | | ?????????????????????????????????????# = | | ?????????????????????????????????????# ^ ^ | | ?????????????????????????????????????### ## ^^# | | ???????????????????????????????????????# ## # | | ???????????????????????????????????????+ * | | ???????????????????????????????????????+ | | ???????????????????????????????????????# | | ???????????????????????????????????????# ## # | | ???????????????????????????????????????# ## # | | ???????????????????????????????????????# ##+###? | | ???????????????????????????????????????# #?????? | | ???????????????????????????????????????+ +?????? | | ???????????????????????????????????????# #?????? | | ???????????????????????????????????????? #?????? | +----------------------------------------------------+ Best States ------------- Heat Dissipation 34 Energy Generation 17 Energy Capacity 280 Matter Stores 300 Matter Capacity 300 Sight Range 16 Terrain Scan Density 10 Armor Coverage 150 Evasion (%) 55 Recoil Reduction 1 Kinecelleration 30 Offensive Hacking 30 Authchip Count 4 Item Schematics ----------------- Plasma Cutter | -9/Recycling | Hacked Lgt. EM Pulse Cannon | -9/Recycling | Hacked Matter Compressor | -7/Factory | Hacked Robot Schematics ------------------ Y-45 Defender | -9/Recycling | Hacked M-13 Machinist | -9/Recycling | Hacked P-60 Hacker | -7/Factory | Hacked Fabricated ------------ P-60 Hacker | x2 | -7/Factory | Authchip P-60 Hacker | x2 | -7/Factory | Authchip P-60 Hacker | x2 | -7/Factory | Authchip P-60 Hacker | x2 | -7/Factory | Authchip M-13 Machinist | x1 | -7/Factory HERF Cannon | x2 | -7/Factory | Preloaded Repaired ---------- Nothing Studied --------- None Alien Tech Used ----------------- None Achievements -------------- None Challenges ------------ None Game ------ Seed AccelerationArcsightAxe Manual? 0 Play Time 00:39:40 Cumulative 220.8 hours Start 2026.07.01 @ 21:43:48 End 2026.07.02 @ 23:06:27 Sessions 4 Manual Loads 0 Difficulty Rogue Special Mode None Game No. 368 Rogue 368 Adventurer 0 Explorer 0 Win Type - Total 2 Types 2/0/0/0/0/0/0/0/0/0 Lore% 66 Gallery% 61 Achievement% 49 Wizard Run 0 Options --------- Layout 2 ASCII 0 Keyboard 0 Movement Numpad Keybinds 0 Fullscreen 1 Font 20/SmallcapsGlow Map View 64x51 Zoom Use 0% Tactical HUD 1 Map Filters NONE Filters NONE Steam 1 RUN: 7ea57b49-826e-41fe-9859-a2e7f12ba2aa